bitfinex/quotes_BTCUSD_20251113
["timestamp","ask_amount","ask_price","bid_price","bid_amount"]
[1763002729161,2.38589681,102200.0,102190.0,0.2391326]
[1763002731846,2.35836681,102200.0,102190.0,0.2391326]
[1763002732058,2.1442921,102200.0,102190.0,0.2391326]
[1763002734987,2.1311221,102200.0,102190.0,0.2391326]
[1763002735611,2.32681681,102200.0,102190.0,0.2391326]
[1763002735828,2.33998681,102200.0,102190.0,0.2391326]
[1763002737162,2.1442921,102200.0,102190.0,0.2391326]
[1763002737778,2.33998681,102200.0,102190.0,0.2391326]
[1763002740113,1.8081221,102200.0,102190.0,0.2391326]
[1763002740243,1.8081221,102200.0,102190.0,0.5429395]
[1763002740440,1.78979675,102200.0,102190.0,0.2391326]
[1763002741676,0.54294112,102220.0,102210.0,0.19567556]
[1763002741990,2.0,102210.0,102200.0,0.54290354]
[1763002742201,0.01832509,102210.0,102200.0,0.23909664]
[1763002742402,2.59079348,102220.0,102210.0,0.19567556]
[1763002742583,2.40367249,102220.0,102210.0,0.19567556]
[1763002742782,2.57822655,102220.0,102210.0,0.19567556]
[1763002743015,2.55147655,102220.0,102210.0,0.19567556]
[1763002743219,2.0,102210.0,102200.0,0.23909664]
[1763002744427,2.0,102210.0,102200.0,0.54290354]
[1763002745194,2.0,102220.0,102210.0,0.2390943]
[1763002745393,2.0,102220.0,102210.0,0.5429012]
[1763002745763,2.19565642,102220.0,102210.0,0.2390943]
[1763002746119,2.0,102220.0,102210.0,0.2390943]
[1763002746734,2.001,102220.0,102210.0,0.2390943]
[1763002747501,2.19665642,102220.0,102210.0,0.2390943]
[1763002748841,2.19665642,102220.0,102210.0,0.04341874]
[1763002749349,2.19665642,102220.0,102210.0,0.2390943]
[1763002750951,2.19665642,102220.0,102210.0,0.04341874]
[1763002751234,2.21031642,102220.0,102210.0,0.2390943]
[1763002751899,2.21031642,102220.0,102210.0,0.04341874]
[1763002752100,2.20931642,102220.0,102210.0,0.04341874]
[1763002753541,2.20931642,102220.0,102210.0,0.2390943]
[1763002755027,2.20931642,102220.0,102210.0,0.04341874]
[1763002755831,2.20931642,102220.0,102210.0,0.2390943]
[1763002756194,2.22661642,102220.0,102210.0,0.2390943]
[1763002761504,2.22661642,102220.0,102210.0,0.04341874]
[1763002761505,2.25358642,102220.0,102210.0,0.04341874]
[1763002761703,2.19567556,102210.0,102200.0,0.26851081]
[1763002761907,2.0,102200.0,102190.0,0.60458538]
[1763002762130,2.01366,102200.0,102190.0,0.23490115]
[1763002762335,2.0,102200.0,102190.0,0.20549955]
[1763002762531,2.0,102200.0,102190.0,0.24891829]
[1763002763239,2.19569471,102200.0,102190.0,0.24891829]
[1763002763709,2.0,102200.0,102190.0,0.24891829]
[1763002764432,2.0,102200.0,102190.0,0.25091829]
[1763002765044,2.0,102200.0,102190.0,0.25291829]
[1763002766211,2.0,102200.0,102190.0,0.55672519]
[1763002768999,2.0,102200.0,102190.0,0.55664923]
[1763002773138,2.19569471,102200.0,102190.0,0.55664923]
[1763002774996,2.0,102200.0,102190.0,0.55664923]
[1763002779319,2.0,102200.0,102190.0,0.25291829]
[1763002779526,2.19569471,102200.0,102190.0,0.55664923]
[1763002779730,2.19569471,102200.0,102190.0,0.25291829]
[1763002779936,2.19569471,102200.0,102190.0,0.55664923]
[1763002780330,2.0,102200.0,102190.0,0.55664923]
[1763002780867,2.19569471,102200.0,102190.0,0.25291829]
[1763002781115,2.19569471,102200.0,102190.0,0.55664923]
[1763002782139,2.19569471,102200.0,102190.0,0.25291829]
[1763002782458,2.19569471,102200.0,102190.0,0.55664923]
[1763002785662,2.0,102200.0,102190.0,0.55664923]
[1763002786044,2.19569471,102200.0,102190.0,0.55664923]
[1763002786513,2.22613471,102200.0,102190.0,0.04741874]
[1763002786719,2.22613471,102200.0,102190.0,0.004]
[1763002786720,2.61323643,102200.0,102190.0,0.004]
[1763002786869,2.96676092,102200.0,102190.0,0.004]
[1763002787071,3.30086123,102200.0,102190.0,0.004]
[1763002787436,3.33027263,102200.0,102190.0,0.002]
[1763002787549,3.35135584,102200.0,102190.0,0.002]
[1763002787751,2.19571386,102190.0,102180.0,0.00014045]
[1763002787957,2.60736954,102190.0,102180.0,0.00014045]
[1763002788360,2.63678094,102190.0,102180.0,0.00014045]
[1763002789567,2.63778094,102190.0,102180.0,0.00014045]
[1763002791856,2.6377272,102190.0,102180.0,0.00014045]
[1763002792480,2.25651152,102190.0,102180.0,0.00014045]
[1763002792683,2.22710012,102190.0,102180.0,0.19587347]
[1763002793734,2.22710012,102190.0,102180.0,0.00014045]
[1763002794134,2.25342012,102190.0,102180.0,0.00014045]
[1763002796463,2.25342012,102190.0,102180.0,0.19587347]
[1763002796676,2.19671386,102190.0,102180.0,0.54302315]
[1763002796810,2.001,102190.0,102180.0,0.54302315]
[1763002798666,2.19671386,102190.0,102180.0,0.54302315]
[1763002799088,2.001,102190.0,102180.0,0.54302315]
[1763002799461,2.0,102190.0,102180.0,0.54302315]
[1763002799677,2.19571386,102190.0,102180.0,0.54302315]
[1763002800053,2.0,102190.0,102180.0,0.54302315]
[1763002802071,2.0,102190.0,102180.0,0.84675409]
[1763002802273,2.0,102190.0,102180.0,0.54302315]
[1763002802961,2.0,102200.0,102190.0,0.19571386]
[1763002803163,2.0,102200.0,102190.0,0.4994448]
[1763002803347,2.0,102200.0,102190.0,0.19571386]
[1763002803568,2.0,102200.0,102190.0,0.4994448]
[1763002804175,2.0,102190.0,102180.0,0.23929212]
[1763002804386,0.19571386,102190.0,102180.0,0.54302315]
[1763002804787,0.24818386,102190.0,102180.0,0.23929221]
[1763002804982,2.58477263,102190.0,102180.0,0.00014045]
[1763002805413,2.60306554,102190.0,102180.0,0.00014045]
[1763002806502,3.00794039,102190.0,102180.0,0.00014045]
[1763002806714,2.92606554,102190.0,102180.0,0.00014045]
[1763002808293,2.89320771,102190.0,102180.0,0.00014045]
[1763002808456,2.92606554,102190.0,102180.0,0.00014045]
[1763002811784,2.72311469,102190.0,102180.0,0.00014045]
[1763002812012,2.91882855,102190.0,102180.0,0.00014045]
[1763002812371,2.9482403,102190.0,102180.0,0.00014045]
[1763002812577,3.25197124,102190.0,102180.0,0.00014045]
[1763002812774,2.9482403,102190.0,102180.0,0.00014045]
[1763002813214,3.27304247,102190.0,102180.0,0.00014045]
[1763002813516,2.96931153,102190.0,102180.0,0.00014045]
[1763002813748,3.27404247,102190.0,102180.0,0.00014045]
[1763002813956,3.0006809,102190.0,102180.0,0.00014045]
[1763002814167,2.63372276,102190.0,102180.0,0.00014045]
[1763002814366,2.97031153,102190.0,102180.0,0.00014045]
[1763002815138,2.94089978,102190.0,102180.0,0.00014045]
[1763002817938,3.03932013,102190.0,102180.0,0.00014045]
[1763002818136,2.94089978,102190.0,102180.0,0.00014045]
[1763002826200,2.94089505,102190.0,102180.0,0.00014045]
[1763002826558,3.03617398,102190.0,102180.0,0.00014045]
[1763002826760,3.33990492,102190.0,102180.0,0.00014045]
[1763002826959,3.03617398,102190.0,102180.0,0.00014045]
[1763002828423,3.06654335,102190.0,102180.0,0.00014045]
[1763002828850,2.81301824,102190.0,102180.0,0.00014045]
[1763002829053,3.06680287,102190.0,102180.0,0.00014045]
[1763002830077,3.06680611,102190.0,102180.0,0.00014045]
[1763002830277,3.28680611,102190.0,102180.0,0.00014045]
[1763002830867,2.93244628,102190.0,102180.0,0.00014045]
[1763002831121,3.23643674,102190.0,102180.0,0.00014045]
[1763002832260,3.36400536,102190.0,102180.0,0.00014045]
[1763002832460,3.75411457,102190.0,102180.0,0.00014045]
[1763002833941,3.75311457,102190.0,102180.0,0.00014045]
[1763002834320,3.75411457,102190.0,102180.0,0.00014045]
[1763002834541,3.78935466,102190.0,102180.0,0.00014045]
[1763002834826,3.69193431,102190.0,102180.0,0.00014045]
[1763002835876,2.88395339,102190.0,102180.0,0.00014045]
[1763002836080,3.30471665,102190.0,102180.0,0.00014045]
[1763002836321,3.30473482,102190.0,102180.0,0.00014045]
[1763002836750,3.33759265,102190.0,102180.0,0.00014045]
[1763002837134,3.30235256,102190.0,102180.0,0.00014045]
[1763002837976,2.9983621,102190.0,102180.0,0.00014045]
[1763002838121,3.30235256,102190.0,102180.0,0.00014045]
[1763002847266,2.9983621,102190.0,102180.0,0.00014045]
[1763002847476,3.30235256,102190.0,102180.0,0.00014045]
[1763002849340,2.05350082,102190.0,102180.0,0.21507347]
[1763002849691,2.04138082,102190.0,102180.0,0.52866393]
[1763002849865,2.02030959,102190.0,102180.0,0.52866393]
[1763002850027,2.002,102190.0,102180.0,0.52866393]
[1763002850227,2.001,102190.0,102180.0,0.52866393]
[1763002850606,2.0,102190.0,102180.0,0.52866393]
[1763002851231,2.0,102190.0,102180.0,0.57208267]
[1763002851457,2.0,102200.0,102190.0,0.2391326]
[1763002851656,2.0,102200.0,102190.0,0.55272306]
[1763002851862,2.0,102210.0,102200.0,0.23911345]
[1763002852096,2.0,102220.0,102210.0,0.19567556]
[1763002852497,2.0,102220.0,102210.0,0.20527556]
[1763002852724,2.0,102220.0,102210.0,0.21487556]
[1763002852909,2.0,102220.0,102210.0,0.20527556]
[1763002854353,2.0,102220.0,102210.0,0.56228476]
[1763002855302,2.0,102220.0,102210.0,0.2582943]
[1763002855982,1.99946182,102220.0,102210.0,0.2486943]
[1763002857288,2.22512824,102220.0,102210.0,0.04341874]
[1763002857489,2.19513738,102210.0,102200.0,0.19569431]
[1763002857698,1.99946182,102200.0,102190.0,0.20549955]
[1763002857910,1.99946182,102200.0,102190.0,0.24891829]
[1763002858226,1.99946182,102200.0,102190.0,0.25607829]
[1763002858355,0.19569471,102200.0,102190.0,0.25607829]
[1763002858561,2.0,102200.0,102190.0,0.25607829]
[1763002858772,2.19569471,102200.0,102190.0,0.25607829]
[1763002858970,0.20834471,102200.0,102190.0,0.25607829]
[1763002859341,0.20834471,102200.0,102190.0,0.25807829]
[1763002859630,2.28248254,102200.0,102190.0,0.002]
[1763002859828,2.28248254,102200.0,102190.0,0.004]
[1763002859982,2.28248254,102200.0,102190.0,0.19771386]
[1763002860411,2.28248254,102200.0,102190.0,0.001]
[1763002860613,2.909473,102200.0,102190.0,0.002]
[1763002860832,2.60548254,102200.0,102190.0,0.002]
[1763002861035,2.909473,102200.0,102190.0,0.002]
[1763002861236,2.60548254,102200.0,102190.0,0.002]
[1763002861438,2.60533452,102200.0,102190.0,0.002]
[1763002861639,2.90932498,102200.0,102190.0,0.002]
[1763002861816,2.90932498,102200.0,102190.0,0.001]
[1763002862026,0.19571386,102190.0,102180.0,0.00014045]
[1763002862232,2.28026169,102190.0,102180.0,0.00014045]
[1763002862824,2.02769,102190.0,102180.0,0.19587347]
[1763002863030,2.01244,102190.0,102180.0,0.20272347]
[1763002863452,2.20815386,102190.0,102180.0,0.20272347]
[1763002863859,2.01244,102190.0,102180.0,0.20272347]
[1763002865145,2.20815386,102190.0,102180.0,0.20272347]
[1763002865346,2.22340386,102190.0,102180.0,0.19587347]
[1763002865590,2.01244,102190.0,102180.0,0.20272347]
[1763002865793,2.20815386,102190.0,102180.0,0.24614221]
[1763002866418,2.01244,102190.0,102180.0,0.24614221]
[1763002866863,2.22340386,102190.0,102180.0,0.24614221]
[1763002867066,2.22340386,102190.0,102180.0,0.04355919]
[1763002867272,2.24740386,102190.0,102180.0,0.23929221]
[1763002867774,2.24740386,102190.0,102180.0,0.04355919]
[1763002868992,2.24740386,102190.0,102180.0,0.23929221]
[1763002870177,2.24740386,102190.0,102180.0,0.04355919]
[1763002870982,2.24740386,102190.0,102180.0,0.00014045]
[1763002870983,2.55139432,102190.0,102180.0,0.00014045]
[1763002871183,2.90725215,102190.0,102180.0,0.00014045]
[1763002871673,2.92548842,102190.0,102180.0,0.00014045]
[1763002872270,2.95621422,102190.0,102180.0,0.00014045]
[1763002872587,2.92548842,102190.0,102180.0,0.00014045]
[1763002874422,3.05463457,102190.0,102180.0,0.00014045]
[1763002874626,3.07463457,102190.0,102180.0,0.00014045]
[1763002874871,2.97621422,102190.0,102180.0,0.00014045]
[1763002875346,2.95621422,102190.0,102180.0,0.00014045]
[1763002876036,2.89263059,102190.0,102180.0,0.00014045]
[1763002876285,2.89263502,102190.0,102180.0,0.00014045]
[1763002876745,2.92549285,102190.0,102180.0,0.00014045]
[1763002878062,3.2239132,102190.0,102180.0,0.00014045]
[1763002878262,3.76892092,102190.0,102180.0,0.00014045]
[1763002878467,3.49565626,102190.0,102180.0,0.00014045]
[1763002878672,3.39723591,102190.0,102180.0,0.00014045]
[1763002880642,3.34651011,102190.0,102180.0,0.00014045]
[1763002887008,3.35601011,102190.0,102180.0,0.00014045]
[1763002888423,3.36514112,102190.0,102180.0,0.00014045]
[1763002889408,3.37593165,102190.0,102180.0,0.00014045]
[1763002890551,3.36514112,102190.0,102180.0,0.00014045]
[1763002890973,3.66911972,102190.0,102180.0,0.00014045]
[1763002891175,3.76439865,102190.0,102180.0,0.00014045]
[1763002892141,3.53900054,102190.0,102180.0,0.00014045]
[1763002893640,3.50614271,102190.0,102180.0,0.00014045]
[1763002895589,3.20215818,102190.0,102180.0,0.00014045]
[1763002899533,3.30057853,102190.0,102180.0,0.00014045]
[1763002899922,3.20215818,102190.0,102180.0,0.00014045]
[1763002902201,3.22849094,102190.0,102180.0,0.00014045]
[1763002903251,3.21899094,102190.0,102180.0,0.00014045]
[1763002908232,3.02849094,102190.0,102180.0,0.00014045]
[1763002909357,3.00215818,102190.0,102180.0,0.00014045]
[1763002913539,2.99302717,102190.0,102180.0,0.00014045]
[1763002913725,2.99268306,102190.0,102180.0,0.00014045]
[1763002915937,3.01901582,102190.0,102180.0,0.00014045]
[1763002917192,3.52300035,102190.0,102180.0,0.00014045]
[1763002917395,3.68621309,102190.0,102180.0,0.00014045]
[1763002917652,3.60779274,102190.0,102180.0,0.00014045]
[1763002917846,3.28380821,102190.0,102180.0,0.00014045]
[1763002918411,3.05187365,102190.0,102180.0,0.00014045]
[1763002920249,3.25187365,102190.0,102180.0,0.00014045]
[1763002922062,3.24271776,102190.0,102180.0,0.00014045]
[1763002922260,3.25186749,102190.0,102180.0,0.00014045]
[1763002923365,3.55585202,102190.0,102180.0,0.00014045]
[1763002924242,3.65427237,102190.0,102180.0,0.00014045]
[1763002925578,3.55585202,102190.0,102180.0,0.00014045]
[1763002926205,3.25186749,102190.0,102180.0,0.00014045]
[1763002926962,3.55585202,102190.0,102180.0,0.00014045]
[1763002928188,3.55590663,102190.0,102180.0,0.00014045]
[1763002928974,2.94793757,102190.0,102180.0,0.00014045]
[1763002929175,3.55590663,102190.0,102180.0,0.00414045]
[1763002930270,3.65432698,102190.0,102180.0,0.00414045]
[1763002930477,3.43875377,102190.0,102180.0,0.00414045]
[1763002930700,3.34033342,102190.0,102180.0,0.00414045]
[1763002931660,3.03634889,102190.0,102180.0,0.00414045]
[1763002932064,2.53236436,102190.0,102180.0,0.00414045]
[1763002932271,2.80349106,102190.0,102180.0,0.00414045]
[1763002933047,2.80449106,102190.0,102180.0,0.00414045]
[1763002933198,2.83734889,102190.0,102180.0,0.00414045]
[1763002933399,3.03834889,102190.0,102180.0,0.00414045]
[1763002934028,3.03834528,102190.0,102180.0,0.00414045]
[1763002934651,3.34232981,102190.0,102180.0,0.00414045]
[1763002934886,3.39448283,102190.0,102180.0,0.00414045]
[1763002935898,3.40173283,102190.0,102180.0,0.00414045]
[1763002940005,3.38173283,102190.0,102180.0,0.00414045]
[1763002940293,3.40173283,102190.0,102180.0,0.00414045]
[1763002940447,3.42806559,102190.0,102180.0,0.00414045]
[1763002940652,3.52648594,102190.0,102180.0,0.00414045]
[1763002942889,3.42806559,102190.0,102180.0,0.00414045]
[1763002944887,3.16660292,102190.0,102180.0,0.00414045]
[1763002945830,3.16660312,102190.0,102180.0,0.00414045]
[1763002950242,3.17610312,102190.0,102180.0,0.00414045]
[1763002950921,2.8721456,102190.0,102180.0,0.00414045]
[1763002953304,3.30091025,102190.0,102180.0,1e-08]
[1763002953504,3.30092348,102190.0,102180.0,1e-08]
[1763002953725,3.20250313,102190.0,102180.0,1e-08]
[1763002954933,3.21141046,102190.0,102180.0,1e-08]
[1763002955156,3.23774569,102190.0,102180.0,1e-08]
[1763002955866,2.93373415,102190.0,102180.0,1e-08]
[1763002956089,2.91373415,102190.0,102180.0,1e-08]
[1763002956309,2.93373415,102190.0,102180.0,1e-08]
[1763002956746,3.0321545,102190.0,102180.0,1e-08]
[1763002958264,2.93365066,102190.0,102180.0,1e-08]
[1763002959846,3.2376622,102190.0,102180.0,1e-08]
[1763002960052,3.21132697,102190.0,102180.0,1e-08]
[1763002962498,3.23765417,102190.0,102180.0,1e-08]
[1763002962719,3.21132697,102190.0,102180.0,1e-08]
[1763002962920,3.23765323,102190.0,102180.0,1e-08]
[1763002963124,3.31005901,102190.0,102180.0,1e-08]
[1763002963334,3.28373275,102190.0,102180.0,1e-08]
[1763002966263,3.27423275,102190.0,102180.0,1e-08]
[1763002966905,3.3270843,102190.0,102180.0,1e-08]
[1763002968179,3.29184421,102190.0,102180.0,1e-08]
[1763002969276,3.32693881,102190.0,102180.0,1e-08]
[1763002969955,3.32692179,102190.0,102180.0,1e-08]
[1763002971122,3.33642179,102190.0,102180.0,1e-08]
[1763002972425,3.26401601,102190.0,102180.0,1e-08]
[1763002973437,3.21116446,102190.0,102180.0,1e-08]
[1763002973948,3.26401601,102190.0,102180.0,1e-08]
[1763002974389,3.21116446,102190.0,102180.0,1e-08]
[1763002974606,3.26401601,102190.0,102180.0,1e-08]
[1763002974852,3.33705453,102190.0,102180.0,1e-08]
[1763002975972,3.33673774,102190.0,102180.0,1e-08]
[1763002976425,3.26369922,102190.0,102180.0,1e-08]
[1763002976648,3.25419922,102190.0,102180.0,1e-08]
[1763002981609,3.26369922,102190.0,102180.0,1e-08]
[1763002982522,3.22860462,102190.0,102180.0,1e-08]
[1763002983260,3.22861505,102190.0,102180.0,1e-08]
[1763002983458,3.3270354,102190.0,102180.0,1e-08]
[1763002984116,2.00710635,102180.0,102170.0,1e-08]
[1763002984461,2.75154793,102180.0,102170.0,9.167e-05]
[1763002984662,2.69869638,102180.0,102170.0,9.167e-05]
[1763002984800,2.70594638,102180.0,102170.0,9.167e-05]
[1763002985207,2.80436673,102180.0,102170.0,9.167e-05]
[1763002985447,2.80636673,102180.0,102170.0,9.167e-05]
[1763002985647,2.20034365,102180.0,102170.0,9.167e-05]
[1763002985895,2.80836673,102180.0,102170.0,9.167e-05]
[1763002986094,2.1019233,102180.0,102170.0,9.167e-05]
[1763002986276,2.70994638,102180.0,102170.0,9.167e-05]
[1763002986435,2.73628168,102180.0,102170.0,9.167e-05]
[1763002987113,2.70994638,102180.0,102170.0,9.167e-05]
[1763002987809,2.95244638,102180.0,102170.0,9.167e-05]
[1763002987958,3.05086673,102180.0,102170.0,9.167e-05]
[1763002989097,3.10371828,102180.0,102170.0,9.167e-05]
[1763002989322,3.05086673,102180.0,102170.0,9.167e-05]
[1763002989714,3.10371828,102180.0,102170.0,9.167e-05]
[1763002990719,3.11321828,102180.0,102170.0,9.167e-05]
[1763002992151,3.15253239,102180.0,102170.0,9.167e-05]
[1763002995652,3.08920874,102180.0,102170.0,9.167e-05]
[1763002995991,3.28920874,102180.0,102170.0,9.167e-05]
[1763002996404,3.08920874,102180.0,102170.0,9.167e-05]
[1763002996611,3.28920874,102180.0,102170.0,9.167e-05]
[1763002996821,3.08920874,102180.0,102170.0,9.167e-05]
[1763002997033,3.38762909,102180.0,102170.0,9.167e-05]
[1763002997384,3.37812909,102180.0,102170.0,9.167e-05]
[1763002997586,3.17812909,102180.0,102170.0,9.167e-05]
[1763002997793,3.37812909,102180.0,102170.0,9.167e-05]
[1763002999430,3.38762909,102180.0,102170.0,9.167e-05]
[1763002999642,3.35477126,102180.0,102170.0,9.167e-05]
[1763003000876,3.30240171,102180.0,102170.0,9.167e-05]
[1763003001013,3.33525954,102180.0,102170.0,9.167e-05]
[1763003001418,3.30240171,102180.0,102170.0,9.167e-05]
[1763003001659,3.33525954,102180.0,102170.0,9.167e-05]
[1763003006000,3.36852037,102180.0,102170.0,9.167e-05]
[1763003007660,3.33342367,102180.0,102170.0,9.167e-05]
[1763003007862,3.43184402,102180.0,102170.0,9.167e-05]
[1763003007999,3.46694072,102180.0,102170.0,9.167e-05]
[1763003008357,3.30837366,102180.0,102170.0,9.167e-05]
[1763003009763,3.30835997,102180.0,102170.0,9.167e-05]
[1763003011007,3.30847207,102180.0,102170.0,9.167e-05]
[1763003011561,2.97470672,102180.0,102170.0,9.167e-05]
[1763003012946,2.99470672,102180.0,102170.0,9.167e-05]
[1763003013168,2.98420672,102180.0,102170.0,9.167e-05]
[1763003013370,3.00420672,102180.0,102170.0,9.167e-05]
[1763003013588,3.30720672,102180.0,102170.0,9.167e-05]
[1763003013788,3.32720672,102180.0,102170.0,9.167e-05]
[1763003014424,3.6683008,102180.0,102170.0,9.167e-05]
[1763003014994,3.61127431,102180.0,102170.0,9.167e-05]
[1763003016124,3.30720672,102180.0,102170.0,9.167e-05]
[1763003016711,3.61127431,102180.0,102170.0,9.167e-05]
[1763003016914,3.63127431,102180.0,102170.0,9.167e-05]
[1763003018107,3.61127431,102180.0,102170.0,9.167e-05]
[1763003018300,3.63758967,102180.0,102170.0,9.167e-05]
[1763003018520,3.68455313,102180.0,102170.0,9.167e-05]
[1763003018680,3.67505313,102180.0,102170.0,9.167e-05]
[1763003018927,3.69505313,102180.0,102170.0,9.167e-05]
[1763003019071,3.67505313,102180.0,102170.0,9.167e-05]
[1763003021725,3.69505313,102180.0,102170.0,9.167e-05]
[1763003023299,3.71014983,102180.0,102170.0,9.167e-05]
[1763003023637,3.71964983,102180.0,102170.0,9.167e-05]
[1763003023899,3.67268637,102180.0,102170.0,9.167e-05]
[1763003025265,3.69268637,102180.0,102170.0,9.167e-05]
[1763003026222,3.67268637,102180.0,102170.0,9.167e-05]
[1763003026864,3.69268637,102180.0,102170.0,9.167e-05]
[1763003027111,3.74329462,102180.0,102170.0,9.167e-05]
[1763003027316,3.71697926,102180.0,102170.0,9.167e-05]
[1763003027541,3.76983081,102180.0,102170.0,9.167e-05]
[1763003027791,4.64693688,102180.0,102170.0,9.167e-05]
[1763003028010,3.20080535,102160.0,102150.0,0.0004]
[1763003028226,3.09730139,102160.0,102150.0,0.00044693]
[1763003028443,3.16368066,102160.0,102150.0,0.00044693]
[1763003028659,3.19080414,102160.0,102150.0,0.00094185]
[1763003029584,3.19079204,102160.0,102150.0,0.00094185]
[1763003029801,2.58265686,102160.0,102150.0,0.00094185]
[1763003030016,3.1020674,102160.0,102150.0,0.00094185]
[1763003030656,3.1040674,102160.0,102150.0,0.00094185]
[1763003031323,3.1050674,102160.0,102150.0,0.00094185]
[1763003033477,2.59236346,102160.0,102150.0,0.00094185]
[1763003033882,2.62522129,102160.0,102150.0,0.00094185]
[1763003034076,2.69146251,102160.0,102150.0,0.00094185]
[1763003034724,2.65860468,102160.0,102150.0,0.00094185]
[1763003035133,2.69146251,102160.0,102150.0,0.00094185]
[1763003035336,2.62522129,102160.0,102150.0,0.00094185]
[1763003037629,2.59236346,102160.0,102150.0,0.00094185]
[1763003038214,2.62522129,102160.0,102150.0,0.00094185]
[1763003040711,2.6252334,102160.0,102150.0,0.00094185]
[1763003040982,2.72365375,102160.0,102150.0,0.00094185]
[1763003041184,2.6252334,102160.0,102150.0,0.00094185]
[1763003042246,2.8252334,102160.0,102150.0,0.00094185]
[1763003042492,2.8452334,102160.0,102150.0,0.00094185]
[1763003043080,2.87875484,102160.0,102150.0,0.00094185]
[1763003043292,2.97717519,102160.0,102150.0,0.00094185]
[1763003046427,3.00346191,102160.0,102150.0,0.00094185]
[1763003049896,2.39532673,102160.0,102150.0,0.00094185]
[1763003050139,2.80346191,102160.0,102150.0,0.00094185]
[1763003050344,2.67875484,102160.0,102150.0,0.00094185]
[1763003050972,2.64589701,102160.0,102150.0,0.00094185]
[1763003051183,2.59237557,102160.0,102150.0,0.00094185]
[1763003056697,1.34983125,102170.0,102160.0,0.21980133]
[1763003056927,1.34983125,102170.0,102160.0,0.56728766]
[1763003057137,1.34983125,102180.0,102170.0,0.23917091]
[1763003057361,1.34983125,102180.0,102170.0,0.5522385]
[1763003057573,1.34983125,102180.0,102170.0,0.5612385]
[1763003057991,1.67283125,102190.0,102180.0,0.19573302]
[1763003058196,1.69109488,102190.0,102180.0,0.20473302]
[1763003058410,1.69109488,102190.0,102180.0,0.21670302]
[1763003058614,1.36809488,102190.0,102180.0,0.21670302]
[1763003058814,1.67283125,102190.0,102180.0,0.21670302]
[1763003059054,1.86854511,102190.0,102180.0,0.21670302]
[1763003059271,1.86854511,102190.0,102180.0,0.02097]
[1763003059506,2.2244927,102190.0,102180.0,0.00297]
[1763003059956,2.2244927,102190.0,102180.0,0.20770302]
[1763003059957,1.88035511,102190.0,102180.0,0.20770302]
[1763003060158,2.1726127,102190.0,102180.0,0.21670302]
[1763003060580,1.67283125,102190.0,102180.0,0.21670302]
[1763003060795,1.67283125,102190.0,102180.0,0.56418935]
[1763003061004,1.34983125,102190.0,102180.0,0.56418935]
[1763003061216,1.34983125,102190.0,102180.0,0.86825694]
[1763003061425,1.34983125,102190.0,102180.0,0.89766439]
[1763003062071,0.0011534,102200.0,102190.0,0.19571386]
[1763003062300,0.0011534,102200.0,102190.0,0.61306038]
[1763003064032,0.0011534,102200.0,102190.0,0.61606038]
[1763003064448,0.0011534,102200.0,102190.0,0.61906038]
[1763003065895,0.19684811,102200.0,102190.0,0.31499279]
[1763003066334,0.19684811,102200.0,102190.0,0.11927893]
[1763003066547,0.19684811,102200.0,102190.0,0.07882187]
[1763003066548,2.5285757,102200.0,102190.0,0.07882187]
[1763003066755,2.5285757,102200.0,102190.0,0.04641874]
[1763003066965,2.56143353,102200.0,102190.0,0.04541874]
[1763003067401,2.56143353,102200.0,102190.0,0.04741874]
[1763003068250,2.94217497,102200.0,102190.0,0.004]
[1763003068476,2.90865353,102200.0,102190.0,0.004]
[1763003072295,2.8757957,102200.0,102190.0,0.004]
[1763003072502,2.90865353,102200.0,102190.0,0.004]
[1763003072928,2.90844688,102200.0,102190.0,0.004]
[1763003073340,2.92659053,102200.0,102190.0,0.004]
[1763003073771,2.95600147,102200.0,102190.0,0.004]
[1763003074373,2.95600147,102200.0,102190.0,0.002]
[1763003074582,2.98952291,102200.0,102190.0,0.002]
[1763003074779,2.19573302,102180.0,102170.0,0.04341874]
[1763003075002,2.19573302,102180.0,102170.0,0.04346567]
[1763003075565,2.19573302,102180.0,102170.0,0.05058567]
[1763003075969,2.19573302,102180.0,102170.0,0.05258567]
[1763003076372,2.22859085,102180.0,102170.0,0.05258567]
[1763003076584,2.24019085,102180.0,102170.0,0.05458567]
[1763003079498,2.54405179,102180.0,102170.0,0.05458567]
[1763003079697,2.60336934,102180.0,102170.0,0.04746567]
[1763003079907,2.63689078,102180.0,102170.0,0.04746567]
[1763003080336,2.63689078,102180.0,102170.0,0.04546567]
[1763003080543,2.63689078,102180.0,102170.0,0.04346567]
[1763003080889,2.33302984,102180.0,102170.0,0.04546567]
[1763003082904,2.13729682,102180.0,102170.0,0.04546567]
[1763003083111,2.33302984,102180.0,102170.0,0.04546567]
[1763003084406,2.95989078,102180.0,102170.0,0.00204693]
[1763003084812,2.98930599,102180.0,102170.0,0.00204693]
[1763003084995,3.29316693,102180.0,102170.0,0.00204693]
[1763003085442,3.03940796,102180.0,102170.0,0.00204693]
[1763003085651,3.3432689,102180.0,102170.0,0.00204693]
[1763003086854,2.95302869,102180.0,102170.0,0.00204693]
[1763003087055,2.95302869,102180.0,102170.0,4.693e-05]
[1763003087409,2.98788652,102180.0,102170.0,4.693e-05]
[1763003088235,2.93403825,102180.0,102170.0,4.693e-05]
[1763003089034,2.93303825,102180.0,102170.0,4.693e-05]
[1763003089269,2.92392672,102180.0,102170.0,4.693e-05]
[1763003089487,2.92492672,102180.0,102170.0,4.693e-05]
[1763003090776,2.88377672,102180.0,102170.0,0.00716693]
[1763003091182,2.89976672,102180.0,102170.0,4.693e-05]
[1763003091386,2.92492672,102180.0,102170.0,4.693e-05]
[1763003091600,2.92392672,102180.0,102170.0,4.693e-05]
[1763003092053,2.92292672,102180.0,102170.0,4.693e-05]
[1763003093797,2.65192361,102180.0,102170.0,4.693e-05]
[1763003093997,2.92292672,102180.0,102170.0,4.693e-05]
[1763003095329,2.9439288,102180.0,102170.0,4.693e-05]
[1763003098398,2.97678663,102180.0,102170.0,4.693e-05]
[1763003098620,2.9439288,102180.0,102170.0,4.693e-05]
[1763003099325,2.95304694,102180.0,102170.0,4.693e-05]
[1763003099995,2.97678663,102180.0,102170.0,4.693e-05]
[1763003100218,2.06858484,102180.0,102170.0,0.25427784]
[1763003100483,2.06858484,102180.0,102170.0,0.05852567]
[1763003100484,2.21390057,102180.0,102170.0,0.05852567]
[1763003100706,2.21390057,102180.0,102170.0,0.05099567]
[1763003100916,2.21390057,102180.0,102170.0,0.24674784]
[1763003101124,2.22596057,102180.0,102170.0,0.05099567]
[1763003101551,2.22596057,102180.0,102170.0,0.24674784]
[1763003102275,2.01816755,102180.0,102170.0,0.25427784]
[1763003102914,2.21390057,102180.0,102170.0,0.05099567]
[1763003103130,2.24243057,102180.0,102170.0,0.24674784]
[1763003103341,2.26625057,102180.0,102170.0,0.04346567]
[1763003103757,2.26625057,102180.0,102170.0,0.23921784]
[1763003104172,2.21390057,102180.0,102170.0,0.24617784]
[1763003104383,2.01816755,102180.0,102170.0,0.25313784]
[1763003104607,2.01816755,102180.0,102170.0,0.25308244]
[1763003104814,2.01816755,102180.0,102170.0,0.55694338]